[Event "EUCC Open Blitz 2024"]
[Site "Miskolc"]
[Date "2024.07.13"]
[Round "4.5"]
[White "Isik, Alparslan"]
[Black "Muha, Miljenko"]
[Result "0-1"]
[ECO "E05"]
[WhiteElo "2469"]
[BlackElo "2245"]
[PlyCount "88"]
[EventDate "2024.07.08"]
[EventType "team-tourn"]
[EventCountry "HUN"]
[TimeControl "1500+10"]

1. Nf3 {[%emt 0:22:17]} Nf6 {[%emt 0:22:18]} 2. c4 {[%emt 0:00:09]} e6 {[%emt 0:00:12]} 3. g3 {[%emt 0:00:10]} d5 {[%emt 0:00:09]} 4. d4 {[%emt 0:00:09]} dxc4 {[%emt 0:00:11]} 5. Bg2 {[%emt 0:00:09]} Be7 {[%emt 0:00:09]} 6. O-O {[%emt 0:00:11]} O-O {[%emt 0:00:10]} 7. Qc2 {[%emt 0:00:09]} a6 {[%emt 0:00:08]} 8. a4 {[%emt 0:00:10]} Bd7 {[%emt 0:00:09]} 9. Rd1 {[%emt 0:00:14]} Bc6 {[%emt 0:00:16]} 10. Nc3 {[%emt 0:00:09]} b5 {[%emt 0:00:28]} 11. axb5 {[%emt 0:00:15]} axb5 {[%emt 0:00:10]} 12. Rxa8 {[%emt 0:00:09]} Bxa8 {[%emt 0:00:09]} 13. Nxb5 {[%emt 0:00:11]} Qd7 {[%emt 0:02:01]} 14. Qxc4 {[%emt 0:00:20]} Bd5 {[%emt 0:00:09]} 15. Qd3 {[%emt 0:00:46]} Be4 {[%emt 0:00:09]} 16. Qc4 {[%emt 0:00:32]} Bd5 {[%emt 0:00:08]} 17. Qxc7 {[%emt 0:00:25]} Qxb5 {[%emt 0:00:11]} 18. Qxe7 {[%emt 0:00:09]} Qxe2 {[%emt 0:00:13]} 19. Re1 {[%emt 0:00:10]} Qc2 {[%emt 0:00:16]} 20. Qc5 {[%emt 0:00:09]} Qb3 {[%emt 0:00:18]} 21. Qc3 {[%emt 0:00:17]} Qb7 {[%emt 0:00:12]} 22. Nh4 {[%emt 0:00:33]} Nbd7 {[%emt 0:00:09]} 23. Bg5 {[%emt 0:00:25]} Ne4 {[%emt 0:00:21]} 24. Bxe4 {[%emt 0:00:50]} Bxe4 {[%emt 0:00:09]} 25. Be7 {[%emt 0:00:09]} Rc8 {[%emt 0:00:12]} 26. Qb4 {[%emt 0:00:10]} Qd5 {[%emt 0:00:14]} 27. Qd6 {[%emt 0:00:11]} Qb7 {[%emt 0:00:16]} 28. Qb4 {[%emt 0:00:14]} Qa8 {[%emt 0:00:12]} 29. Qa3 {[%emt 0:00:10]} Qd5 {[%emt 0:00:10]} 30. Qe3 {[%emt 0:00:14]} Bc2 {[%emt 0:00:14]} 31. Nf3 {[%emt 0:00:10]} Ba4 {[%emt 0:00:10]} 32. Ne5 {[%emt 0:00:10]} Nxe5 {[%emt 0:00:09]} 33. Qxe5 {[%emt 0:00:10]} Qf3 {[%emt 0:00:13]} 34. Qe3 {[%emt 0:00:10]} Qd5 {[%emt 0:00:09]} 35. f3 {[%emt 0:00:10]} Bc6 {[%emt 0:00:09]} 36. Kf2 {[%emt 0:00:09]} Bb7 {[%emt 0:00:09]} 37. Bc5 {[%emt 0:00:09]} Bc6 {[%emt 0:00:09]} 38. b4 {[%emt 0:00:10]} Ra8 {[%emt 0:00:09]} 39. Re2 {[%emt 0:00:09]} Bb5 {[%emt 0:00:08]} 40. Rd2 {[%emt 0:00:10]} Qc4 {[%emt 0:00:09]} 41. Qe1 {[%emt 0:00:11]} Ra3 {[%emt 0:00:12]} 42. Kg2 {[%emt 0:00:11]} h5 {[%emt 0:00:09]} 43. d5 {[%emt 0:00:10]} exd5 {[%emt 0:00:11]} 44. Qe8+ {[%emt 0:00:09]} Bxe8 {[%emt 0:00:09]} 0-1

[Event "EUCC Open Blitz 2024"]
[Site "Miskolc"]
[Date "2024.07.13"]
[Round "4.6"]
[White "Pavic, Filip"]
[Black "Kamer, Kayra"]
[Result "0-1"]
[ECO "B29"]
[WhiteElo "2248"]
[BlackElo "2316"]
[PlyCount "68"]
[EventDate "2024.07.08"]
[EventType "team-tourn"]
[EventCountry "HUN"]
[TimeControl "1500+10"]

1. e4 {[%emt 0:22:17]} c5 {[%emt 0:22:17]} 2. Nf3 {[%emt 0:00:09]} Nf6 {[%emt 0:00:09]} 3. e5 {[%emt 0:00:11]} Nd5 {[%emt 0:00:09]} 4. Nc3 {[%emt 0:00:10]} e6 {[%emt 0:00:10]} 5. Nxd5 {[%emt 0:00:15]} exd5 {[%emt 0:00:09]} 6. c3 {[%emt 0:00:11]} d6 {[%emt 0:00:20]} 7. d4 {[%emt 0:00:17]} Bg4 {[%emt 0:00:23]} 8. h3 {[%emt 0:00:13]} Bxf3 {[%emt 0:00:16]} 9. Qxf3 {[%emt 0:00:09]} dxe5 {[%emt 0:00:10]} 10. dxe5 {[%emt 0:00:09]} Nc6 {[%emt 0:00:10]} 11. Bb5 {[%emt 0:00:16]} Be7 {[%emt 0:00:22]} 12. Qg3 {[%emt 0:00:17]} g6 {[%emt 0:00:31]} 13. O-O {[%emt 0:00:21]} Qd7 {[%emt 0:00:11]} 14. f4 {[%emt 0:00:57]} a6 {[%emt 0:00:09]} 15. Be2 {[%emt 0:00:10]} h5 {[%emt 0:00:32]} 16. Be3 {[%emt 0:00:22]} O-O-O {[%emt 0:00:17]} 17. Rfd1 {[%emt 0:00:21]} Qe6 {[%emt 0:00:16]} 18. Bf3 {[%emt 0:00:12]} d4 {[%emt 0:00:27]} 19. cxd4 {[%emt 0:00:18]} Nxd4 {[%emt 0:00:10]} 20. Bxd4 {[%emt 0:00:09]} Rxd4 {[%emt 0:00:12]} 21. Rxd4 {[%emt 0:00:12]} cxd4 {[%emt 0:00:09]} 22. Qe1 {[%emt 0:00:14]} Qb6 {[%emt 0:00:21]} 23. b3 {[%emt 0:00:29]} Kb8 {[%emt 0:00:11]} 24. Kh1 {[%emt 0:00:09]} Rd8 {[%emt 0:00:11]} 25. Rd1 {[%emt 0:00:10]} d3 {[%emt 0:00:12]} 26. Qc3 Qd4 {[%emt 0:00:22]} 27. Qa5 {[%emt 0:00:47]} d2 {[%emt 0:00:16]} 28. a3 {[%emt 0:00:16]} Bc5 {[%emt 0:00:16]} 29. b4 {[%emt 0:00:12]} Bb6 {[%emt 0:00:10]} 30. Qa4 {[%emt 0:00:09]} Qxf4 {[%emt 0:00:13]} 31. Qb3 {[%emt 0:00:13]} Qxe5 {[%emt 0:00:14]} 32. Qxf7 {[%emt 0:00:10]} Qe1+ {[%emt 0:00:10]} 33. Kh2 {[%emt 0:00:10]} Bg1+ {[%emt 0:00:11]} 34. Kh1 {[%emt 0:00:10]} Bf2+ {[%emt 0:00:09]} 0-1

[Event "EUCC Open Blitz 2024"]
[Site "Miskolc"]
[Date "2024.07.13"]
[Round "4.7"]
[White "Papp, Levente"]
[Black "Medve, Mark"]
[Result "1-0"]
[ECO "A20"]
[WhiteElo "2359"]
[BlackElo "2123"]
[PlyCount "62"]
[EventDate "2024.07.08"]
[EventType "team-tourn"]
[EventCountry "HUN"]
[TimeControl "1500+10"]

1. c4 {[%emt 0:22:18]} e5 {[%emt 0:22:16]} 2. g3 {[%emt 0:00:09]} Nf6 {[%emt 0:00:09]} 3. Bg2 {[%emt 0:00:09]} Nc6 {[%emt 0:00:11]} 4. Nc3 {[%emt 0:00:09]} Bb4 {[%emt 0:00:09]} 5. Nd5 {[%emt 0:00:09]} Bc5 {[%emt 0:00:09]} 6. e3 {[%emt 0:00:09]} Nxd5 {[%emt 0:00:17]} 7. cxd5 {[%emt 0:00:09]} Ne7 {[%emt 0:00:10]} 8. Ne2 {[%emt 0:00:19]} d6 {[%emt 0:00:13]} 9. b4 {[%emt 0:00:13]} Bb6 {[%emt 0:00:10]} 10. Bb2 {[%emt 0:00:10]} a5 {[%emt 0:00:16]} 11. a3 {[%emt 0:00:11]} axb4 {[%emt 0:00:10]} 12. axb4 {[%emt 0:00:09]} Rxa1 {[%emt 0:00:11]} 13. Qxa1 {[%emt 0:00:12]} Bg4 {[%emt 0:00:22]} 14. Nc3 {[%emt 0:00:13]} Qc8 {[%emt 0:00:38]} 15. O-O {[%emt 0:00:14]} O-O {[%emt 0:00:49]} 16. Rc1 {[%emt 0:00:12]} Bd7 {[%emt 0:00:43]} 17. Qa2 {[%emt 0:00:51]} Qa8 {[%emt 0:00:10]} 18. Qb3 {[%emt 0:00:09]} c6 {[%emt 0:00:21]} 19. dxc6 {[%emt 0:00:37]} bxc6 {[%emt 0:00:10]} 20. b5 {[%emt 0:00:09]} Bc5 {[%emt 0:00:22]} 21. Ne4 {[%emt 0:00:13]} Qb8 {[%emt 0:00:21]} 22. Nxc5 {[%emt 0:00:11]} dxc5 {[%emt 0:00:09]} 23. Rxc5 {[%emt 0:00:11]} cxb5 {[%emt 0:00:12]} 24. Bxe5 {[%emt 0:00:10]} Qb6 {[%emt 0:00:13]} 25. Bd4 {[%emt 0:00:11]} Qa6 {[%emt 0:00:13]} 26. h4 {[%emt 0:00:17]} Rc8 {[%emt 0:00:09]} 27. Rg5 {[%emt 0:00:19]} Nf5 {[%emt 0:00:15]} 28. Bc3 {[%emt 0:00:32]} Be6 {[%emt 0:00:11]} 29. Qb2 {[%emt 0:00:16]} h6 {[%emt 0:00:09]} 30. Rg4 {[%emt 0:00:09]} b4 {[%emt 0:00:17]} 31. Bxg7 {[%emt 0:00:11]} h5 {[%emt 0:00:00]} 1-0

[Event "EUCC Open Blitz 2024"]
[Site "Miskolc"]
[Date "2024.07.13"]
[Round "4.8"]
[White "Kovacs, Gabor Etele"]
[Black "Fodor, Balazs"]
[Result "0-1"]
[ECO "B51"]
[WhiteElo "2109"]
[BlackElo "2247"]
[PlyCount "34"]
[EventDate "2024.07.08"]
[EventType "team-tourn"]
[EventCountry "HUN"]
[TimeControl "1500+10"]

1. e4 {[%emt 0:22:17]} c5 {[%emt 0:22:17]} 2. Nf3 {[%emt 0:00:09]} d6 {[%emt 0:00:12]} 3. Bb5+ {[%emt 0:00:13]} Nd7 {[%emt 0:00:10]} 4. d4 {[%emt 0:00:09]} cxd4 {[%emt 0:00:09]} 5. Qxd4 {[%emt 0:00:09]} a6 {[%emt 0:00:10]} 6. Bxd7+ {[%emt 0:00:09]} Bxd7 {[%emt 0:00:09]} 7. c4 {[%emt 0:00:10]} f5 {[%emt 0:00:14]} 8. Nc3 {[%emt 0:00:18]} fxe4 {[%emt 0:00:10]} 9. Nxe4 {[%emt 0:00:14]} Nf6 {[%emt 0:00:10]} 10. Nxf6+ {[%emt 0:00:11]} gxf6 {[%emt 0:00:10]} 11. Qd5 {[%emt 0:00:20]} e5 {[%emt 0:00:12]} 12. Qe4 {[%emt 0:00:42]} Bc6 {[%emt 0:00:13]} 13. Qg4 {[%emt 0:00:10]} Qd7 {[%emt 0:00:11]} 14. Qh5+ {[%emt 0:00:14]} Qf7 {[%emt 0:00:10]} 15. Qf5 {[%emt 0:00:24]} Rg8 {[%emt 0:00:21]} 16. O-O {[%emt 0:00:31]} Qxc4 {[%emt 0:00:19]} 17. Qxf6 {[%emt 0:00:34]} Qg4 {[%emt 0:00:12]} 0-1

[Event "EUCC Open Blitz 2024"]
[Site "Miskolc"]
[Date "2024.07.13"]
[Round "4.9"]
[White "Schiopu, Andreea-Alexandra"]
[Black "Veiga, Jose Francisco R P N"]
[Result "0-1"]
[ECO "A49"]
[WhiteElo "1829"]
[BlackElo "2385"]
[PlyCount "106"]
[EventDate "2024.07.08"]
[EventType "team-tourn"]
[EventCountry "HUN"]
[TimeControl "1500+10"]

1. d4 Nf6 2. Nf3 g6 3. g3 Bg7 4. Bg2 O-O 5. O-O d6 6. b3 c5 7. Bb2 Nc6 8. d5 Na5 9. c4 a6 10. Nc3 Rb8 11. Nd2 b5 12. Nce4 bxc4 13. Nxf6+ exf6 14. Bc3 f5 15. Bxg7 Kxg7 16. Nxc4 Nxc4 17. bxc4 Bd7 18. Qc2 Qf6 19. Rab1 a5 20. Rfc1 a4 21. e3 Qe5 22. Bf1 Rb4 23. a3 Rbb8 24. Be2 Rfe8 25. Bd1 Qf6 26. Qd2 Rec8 27. Qa5 Ra8 28. Qc3 Rcb8 29. Qxf6+ Kxf6 30. Kf1 g5 31. Ke2 f4 32. Kf1 fxe3 33. fxe3 Ke5 34. Kf2 Bf5 35. Rxb8 Rxb8 36. Bxa4 Rb2+ 37. Kg1 Be4 38. Bd1 Rg2+ 39. Kf1 Rxh2 40. a4 Ra2 41. Bb3 Ra3 42. Bc2 Rc3 43. Ke2 Bxc2 44. Kd2 Ra3 45. Rxc2 Rxa4 46. Kd3 Ra3+ 47. Ke2 Ke4 48. Rb2 Rxe3+ 49. Kf2 Rf3+ 50. Kg2 g4 51. Rb7 Kd4 52. Rd7 Rf6 53. Rd8 Ke5 0-1

[Event "EUCC Open Blitz 2024"]
[Site "Miskolc"]
[Date "2024.07.13"]
[Round "4.10"]
[White "Ribeiro, Rodrigo"]
[Black "Panait, Robert-Florentin"]
[Result "1-0"]
[ECO "D06"]
[WhiteElo "2181"]
[BlackElo "1696"]
[PlyCount "60"]
[EventDate "2024.07.08"]
[EventType "team-tourn"]
[EventCountry "HUN"]
[TimeControl "1500+10"]

1. d4 {[%emt 0:22:16]} d5 {[%emt 0:22:19]} 2. c4 {[%emt 0:00:09]} Nf6 {[%emt 0:00:09]} 3. Nc3 {[%emt 0:00:09]} Bf5 {[%emt 0:00:10]} 4. Qb3 {[%emt 0:00:31]} b6 {[%emt 0:00:32]} 5. cxd5 {[%emt 0:00:16]} e6 {[%emt 0:00:18]} 6. dxe6 {[%emt 0:00:10]} Bxe6 {[%emt 0:00:13]} 7. Qb5+ {[%emt 0:00:23]} Nbd7 {[%emt 0:00:12]} 8. Nf3 {[%emt 0:00:15]} Be7 {[%emt 0:00:18]} 9. Bf4 {[%emt 0:00:29]} O-O {[%emt 0:00:16]} 10. e3 {[%emt 0:00:09]} a6 {[%emt 0:00:48]} 11. Qc6 {[%emt 0:00:22]} Rc8 {[%emt 0:00:37]} 12. Bxa6 {[%emt 0:00:30]} Nb8 13. Qa4 {[%emt 0:00:17]} Nxa6 {[%emt 0:00:31]} 14. Qxa6 {[%emt 0:00:09]} c5 {[%emt 0:00:12]} 15. dxc5 {[%emt 0:01:02]} Rxc5 {[%emt 0:00:14]} 16. Rd1 {[%emt 0:00:11]} Qa8 {[%emt 0:00:17]} 17. Qxa8 Rxa8 {[%emt 0:00:08]} 18. O-O {[%emt 0:00:34]} h6 {[%emt 0:00:09]} 19. a3 {[%emt 0:00:13]} Rac8 {[%emt 0:00:35]} 20. Bd6 {[%emt 0:00:10]} Bxd6 {[%emt 0:00:10]} 21. Rxd6 {[%emt 0:00:09]} b5 {[%emt 0:00:17]} 22. Rfd1 {[%emt 0:00:09]} Kh7 23. h3 {[%emt 0:00:09]} Bb3 {[%emt 0:00:24]} 24. R1d2 {[%emt 0:00:09]} Rxc3 {[%emt 0:00:18]} 25. bxc3 {[%emt 0:00:10]} Ne4 26. Rb2 {[%emt 0:00:21]} Nxd6 {[%emt 0:00:19]} 27. Rxb3 {[%emt 0:00:09]} Nc4 {[%emt 0:00:09]} 28. Rxb5 {[%emt 0:00:10]} Nd6 {[%emt 0:00:09]} 29. Kf1 {[%emt 0:00:06]} Ra8 {[%emt 0:00:09]} 30. Ke2 {[%emt 0:00:07]} Kg6 {[%emt 0:00:09]} 1-0

[Event "EUCC Open Blitz 2024"]
[Site "Miskolc"]
[Date "2024.07.13"]
[Round "4.11"]
[White "Gharibyan, Mamikon"]
[Black "Jellema, Pieter"]
[Result "1-0"]
[ECO "B13"]
[WhiteElo "2492"]
[BlackElo "2006"]
[PlyCount "83"]
[EventDate "2024.07.08"]
[EventType "team-tourn"]
[EventCountry "HUN"]
[TimeControl "1500+10"]

1. e4 {[%emt 0:22:17]} c6 {[%emt 0:22:16]} 2. d4 {[%emt 0:00:10]} d5 {[%emt 0:00:08]} 3. exd5 {[%emt 0:00:09]} cxd5 {[%emt 0:00:09]} 4. Bd3 Nc6 5. c3 {[%emt 0:00:19]} Nf6 {[%emt 0:00:17]} 6. h3 e5 7. dxe5 {[%emt 0:00:29]} Nxe5 {[%emt 0:00:17]} 8. Bb5+ {[%emt 0:00:09]} Bd7 {[%emt 0:00:19]} 9. Bxd7+ {[%emt 0:00:16]} Nexd7 {[%emt 0:00:17]} 10. Nf3 {[%emt 0:00:12]} Bd6 {[%emt 0:00:11]} 11. O-O {[%emt 0:00:11]} O-O {[%emt 0:00:10]} 12. Re1 {[%emt 0:00:16]} Qb6 {[%emt 0:00:16]} 13. Qb3 {[%emt 0:00:38]} Nc5 {[%emt 0:00:09]} 14. Qc2 {[%emt 0:00:22]} Nfe4 {[%emt 0:00:28]} 15. Be3 {[%emt 0:00:10]} Qc7 {[%emt 0:00:15]} 16. Nbd2 {[%emt 0:00:15]} Rfe8 {[%emt 0:00:16]} 17. Nb3 {[%emt 0:00:10]} Ne6 {[%emt 0:00:15]} 18. Rad1 {[%emt 0:00:10]} Rad8 {[%emt 0:00:10]} 19. a4 {[%emt 0:00:16]} b6 {[%emt 0:00:18]} 20. Nbd4 {[%emt 0:00:09]} Nf4 {[%emt 0:00:22]} 21. Nb5 {[%emt 0:00:18]} Qd7 {[%emt 0:00:08]} 22. Nxd6 {[%emt 0:00:30]} Qxd6 {[%emt 0:00:10]} 23. Bxf4 {[%emt 0:00:13]} Qxf4 {[%emt 0:00:09]} 24. Rd4 {[%emt 0:00:11]} Qh6 {[%emt 0:00:38]} 25. c4 {[%emt 0:00:43]} Ng5 {[%emt 0:00:40]} 26. Rxe8+ {[%emt 0:00:17]} Rxe8 {[%emt 0:00:08]} 27. Nxg5 {[%emt 0:00:09]} Qxg5 {[%emt 0:00:14]} 28. Rxd5 {[%emt 0:00:13]} Qf4 {[%emt 0:00:20]} 29. g3 {[%emt 0:00:21]} Qf3 {[%emt 0:00:14]} 30. Qd1 {[%emt 0:00:10]} Qf6 {[%emt 0:00:15]} 31. b3 {[%emt 0:00:13]} h6 {[%emt 0:00:13]} 32. h4 {[%emt 0:00:09]} g6 {[%emt 0:00:28]} 33. Kg2 {[%emt 0:00:12]} Qb2 {[%emt 0:00:09]} 34. Qf3 {[%emt 0:00:13]} Re7 {[%emt 0:00:19]} 35. h5 {[%emt 0:00:12]} g5 {[%emt 0:00:12]} 36. a5 {[%emt 0:00:20]} bxa5 {[%emt 0:00:09]} 37. Rxa5 Kg7 {[%emt 0:00:10]} 38. Ra6 {[%emt 0:00:19]} Qd4 {[%emt 0:00:12]} 39. Ra5 {[%emt 0:00:14]} Qb2 {[%emt 0:00:09]} 40. Rf5 {[%emt 0:00:10]} a6 {[%emt 0:00:10]} 41. c5 {[%emt 0:00:10]} Rb7 {[%emt 0:00:12]} 42. Qxb7 {[%emt 0:00:10]} 1-0

[Event "EUCC Open Blitz 2024"]
[Site "Miskolc"]
[Date "2024.07.13"]
[Round "4.12"]
[White "Broersma, Sven"]
[Black "Manukyan, Artyom"]
[Result "1/2-1/2"]
[ECO "D35"]
[WhiteElo "1945"]
[BlackElo "2155"]
[PlyCount "92"]
[EventDate "2024.07.08"]
[EventType "team-tourn"]
[EventCountry "HUN"]
[TimeControl "1500+10"]

1. d4 {[%emt 0:22:18]} d5 {[%emt 0:22:16]} 2. c4 {[%emt 0:00:08]} e6 {[%emt 0:00:09]} 3. Nc3 {[%emt 0:00:09]} Nf6 {[%emt 0:00:08]} 4. cxd5 {[%emt 0:00:09]} exd5 {[%emt 0:00:10]} 5. Bg5 {[%emt 0:00:08]} c6 {[%emt 0:00:08]} 6. e3 {[%emt 0:00:09]} Qb6 {[%emt 0:00:09]} 7. Qb3 {[%emt 0:00:41]} Qxb3 {[%emt 0:00:20]} 8. axb3 Ne4 9. Nxe4 {[%emt 0:00:25]} dxe4 {[%emt 0:00:17]} 10. Ne2 {[%emt 0:00:25]} Be6 {[%emt 0:00:11]} 11. Nc3 {[%emt 0:00:15]} Bxb3 {[%emt 0:00:16]} 12. Nxe4 {[%emt 0:00:11]} Bb4+ {[%emt 0:00:09]} 13. Nc3 {[%emt 0:00:26]} Nd7 {[%emt 0:00:11]} 14. Bd3 {[%emt 0:00:11]} a5 {[%emt 0:00:17]} 15. Ke2 {[%emt 0:00:20]} a4 {[%emt 0:00:10]} 16. Ne4 {[%emt 0:00:37]} O-O {[%emt 0:00:17]} 17. Bf4 {[%emt 0:00:13]} Nb6 {[%emt 0:01:00]} 18. Rhc1 {[%emt 0:00:21]} Nd5 {[%emt 0:00:41]} 19. Bd6 {[%emt 0:00:09]} Rfe8 {[%emt 0:00:47]} 20. Bxb4 {[%emt 0:00:14]} Nxb4 {[%emt 0:00:09]} 21. Nc5 {[%emt 0:00:09]} b6 {[%emt 0:00:25]} 22. Nxb3 {[%emt 0:00:12]} axb3 {[%emt 0:00:09]} 23. Rxa8 {[%emt 0:00:12]} Rxa8 {[%emt 0:00:09]} 24. Rc3 {[%emt 0:00:08]} Kf8 {[%emt 0:00:19]} 25. Rxb3 {[%emt 0:00:09]} c5 {[%emt 0:00:09]} 26. dxc5 {[%emt 0:00:15]} bxc5 {[%emt 0:00:09]} 27. Rc3 {[%emt 0:00:18]} Ra2 {[%emt 0:00:10]} 28. Kf3 {[%emt 0:00:25]} Rxb2 {[%emt 0:00:11]} 29. Be4 {[%emt 0:00:09]} Na6 {[%emt 0:00:17]} 30. Bd3 {[%emt 0:00:10]} Nb4 {[%emt 0:00:12]} 31. Be4 {[%emt 0:00:18]} Na6 {[%emt 0:00:16]} 32. Bd3 {[%emt 0:00:10]} Nb4 {[%emt 0:00:10]} 33. Be2 Nc2 {[%emt 0:00:14]} 34. Ba6 {[%emt 0:00:28]} Ne1+ {[%emt 0:00:09]} 35. Kg3 {[%emt 0:00:09]} Ra2 {[%emt 0:00:11]} 36. Bb7 {[%emt 0:00:15]} Rb2 {[%emt 0:00:11]} 37. Bd5 {[%emt 0:00:09]} Rd2 {[%emt 0:00:09]} 38. Rxc5 Nd3 39. Rc8+ {[%emt 0:00:22]} Ke7 {[%emt 0:00:19]} 40. Ra8 {[%emt 0:00:16]} Nxf2 {[%emt 0:00:11]} 41. Ra7+ {[%emt 0:00:10]} Kd6 {[%emt 0:00:09]} 42. Bf3 {[%emt 0:00:12]} Ke6 {[%emt 0:00:11]} 43. Ra6+ {[%emt 0:00:09]} Ke7 {[%emt 0:00:09]} 44. Ra7+ {[%emt 0:00:09]} Ke6 {[%emt 0:00:09]} 45. Ra6+ {[%emt 0:00:13]} Ke5 {[%emt 0:00:09]} 46. Ra7 {[%emt 0:00:11]} Nh3 {[%emt 0:00:12]} 1/2-1/2

[Event "EUCC Open Blitz 2024"]
[Site "Miskolc"]
[Date "2024.07.13"]
[Round "4.13"]
[White "Safar, Sandro"]
[Black "Pribelszky, Bence"]
[Result "0-1"]
[ECO "B06"]
[WhiteElo "2220"]
[BlackElo "2363"]
[PlyCount "102"]
[EventDate "2024.07.08"]
[EventType "team-tourn"]
[EventCountry "HUN"]
[TimeControl "1500+10"]

1. e4 {[%emt 0:22:18]} g6 {[%emt 0:22:17]} 2. d4 {[%emt 0:00:11]} Bg7 {[%emt 0:00:08]} 3. Nf3 {[%emt 0:00:10]} d6 {[%emt 0:00:10]} 4. h3 {[%emt 0:00:09]} Nf6 {[%emt 0:00:13]} 5. Bd3 {[%emt 0:00:16]} O-O {[%emt 0:00:10]} 6. O-O {[%emt 0:00:10]} Nbd7 {[%emt 0:00:09]} 7. Re1 {[%emt 0:00:13]} e5 {[%emt 0:00:09]} 8. Be3 {[%emt 0:00:19]} b6 {[%emt 0:00:14]} 9. c4 {[%emt 0:00:19]} Bb7 {[%emt 0:00:52]} 10. Nc3 {[%emt 0:00:11]} Re8 {[%emt 0:00:39]} 11. d5 {[%emt 0:00:10]} a5 {[%emt 0:00:12]} 12. a3 {[%emt 0:00:21]} Nc5 {[%emt 0:00:13]} 13. Bc2 {[%emt 0:00:08]} a4 {[%emt 0:00:23]} 14. Bxc5 {[%emt 0:00:20]} bxc5 {[%emt 0:00:09]} 15. Bxa4 {[%emt 0:00:11]} Rf8 {[%emt 0:00:10]} 16. b4 {[%emt 0:00:18]} Nh5 {[%emt 0:00:24]} 17. bxc5 {[%emt 0:00:19]} dxc5 {[%emt 0:00:10]} 18. Bb5 {[%emt 0:00:27]} f5 {[%emt 0:00:15]} 19. a4 {[%emt 0:00:12]} Nf4 {[%emt 0:00:14]} 20. a5 {[%emt 0:00:15]} Bc8 {[%emt 0:00:25]} 21. Kh2 {[%emt 0:00:28]} Rf7 {[%emt 0:00:45]} 22. a6 {[%emt 0:00:27]} Qf8 {[%emt 0:00:09]} 23. a7 {[%emt 0:00:23]} c6 {[%emt 0:00:12]} 24. Bxc6 {[%emt 0:00:21]} Raxa7 {[%emt 0:00:09]} 25. Nb5 {[%emt 0:00:26]} Rxa1 {[%emt 0:00:09]} 26. Qxa1 {[%emt 0:00:09]} fxe4 {[%emt 0:00:09]} 27. Rxe4 {[%emt 0:00:12]} Nxg2 {[%emt 0:00:09]} 28. d6 {[%emt 0:00:21]} Rxf3 {[%emt 0:00:13]} 29. Bd5+ {[%emt 0:00:12]} Kh8 {[%emt 0:00:09]} 30. Rg4 {[%emt 0:00:11]} Bxg4 {[%emt 0:00:10]} 31. hxg4 {[%emt 0:00:10]} e4 {[%emt 0:00:22]} 32. Qa8 {[%emt 0:00:10]} Qxa8 {[%emt 0:00:10]} 33. Bxa8 {[%emt 0:00:09]} Nh4 {[%emt 0:00:15]} 34. d7 {[%emt 0:00:10]} Rf8 {[%emt 0:00:09]} 35. Bxe4 {[%emt 0:00:09]} Bf6 {[%emt 0:00:09]} 36. Nc7 {[%emt 0:00:11]} Rd8 {[%emt 0:00:09]} 37. Bc6 {[%emt 0:00:10]} Nf3+ {[%emt 0:00:12]} 38. Bxf3 {[%emt 0:00:10]} Rxd7 {[%emt 0:00:09]} 39. Nd5 {[%emt 0:00:10]} Bd4 {[%emt 0:00:08]} 40. Kg3 {[%emt 0:00:10]} Rf7 {[%emt 0:00:10]} 41. Nf4 {[%emt 0:00:10]} Be5 {[%emt 0:00:09]} 42. Kg2 {[%emt 0:00:11]} Rxf4 {[%emt 0:00:10]} 43. Be2 {[%emt 0:00:08]} Re4 {[%emt 0:00:10]} 44. Kf1 {[%emt 0:00:12]} Bd4 {[%emt 0:00:10]} 45. f3 {[%emt 0:00:10]} Re3 {[%emt 0:00:09]} 46. Bd1 {[%emt 0:00:10]} h5 {[%emt 0:00:09]} 47. gxh5 {[%emt 0:00:10]} gxh5 {[%emt 0:00:09]} 48. f4 {[%emt 0:00:09]} h4 {[%emt 0:00:08]} 49. Bg4 {[%emt 0:00:09]} h3 {[%emt 0:00:09]} 50. f5 {[%emt 0:00:11]} h2 51. Kg2 Rg3+ {[%emt 0:00:20]} 0-1

[Event "EUCC Open Blitz 2024"]
[Site "Miskolc"]
[Date "2024.07.13"]
[Round "4.14"]
[White "Vodila, Martin Botond"]
[Black "Tomulic, Teo"]
[Result "1-0"]
[ECO "B50"]
[WhiteElo "2236"]
[BlackElo "2346"]
[PlyCount "68"]
[EventDate "2024.07.08"]
[EventType "team-tourn"]
[EventCountry "HUN"]
[TimeControl "1500+10"]

1. e4 {[%emt 0:22:18]} c5 {[%emt 0:22:17]} 2. Nf3 {[%emt 0:00:09]} d6 {[%emt 0:00:08]} 3. d4 {[%emt 0:00:08]} Nf6 {[%emt 0:00:09]} 4. Nc3 {[%emt 0:00:09]} cxd4 {[%emt 0:00:09]} 5. Qxd4 {[%emt 0:00:09]} Nc6 {[%emt 0:00:13]} 6. Bb5 {[%emt 0:00:09]} Bd7 {[%emt 0:00:12]} 7. Bxc6 {[%emt 0:00:09]} Bxc6 {[%emt 0:00:09]} 8. Bg5 {[%emt 0:00:09]} Qb6 {[%emt 0:00:09]} 9. Qxb6 {[%emt 0:00:13]} axb6 {[%emt 0:00:09]} 10. Bxf6 {[%emt 0:00:21]} gxf6 {[%emt 0:00:09]} 11. Nd4 {[%emt 0:00:17]} e6 {[%emt 0:00:09]} 12. a3 {[%emt 0:00:31]} h5 {[%emt 0:00:12]} 13. h4 {[%emt 0:00:21]} Ke7 {[%emt 0:00:16]} 14. g3 {[%emt 0:00:12]} Bg7 {[%emt 0:00:10]} 15. Ke2 {[%emt 0:00:15]} Rac8 {[%emt 0:00:22]} 16. Nxc6+ {[%emt 0:00:20]} bxc6 {[%emt 0:00:11]} 17. Rad1 {[%emt 0:00:15]} Ra8 {[%emt 0:00:17]} 18. Rd3 {[%emt 0:00:18]} Rhd8 {[%emt 0:00:28]} 19. Rhd1 {[%emt 0:00:11]} Ra5 {[%emt 0:00:12]} 20. f4 {[%emt 0:00:43]} f5 {[%emt 0:00:31]} 21. exf5 {[%emt 0:00:29]} Rxf5 {[%emt 0:00:15]} 22. Ne4 {[%emt 0:00:23]} Rd5 {[%emt 0:00:13]} 23. b3 {[%emt 0:00:14]} Rxd3 {[%emt 0:00:25]} 24. Rxd3 {[%emt 0:00:09]} d5 {[%emt 0:00:08]} 25. Nd2 {[%emt 0:00:15]} b5 {[%emt 0:00:16]} 26. a4 {[%emt 0:00:12]} bxa4 {[%emt 0:00:16]} 27. bxa4 {[%emt 0:00:09]} c5 {[%emt 0:00:38]} 28. Rb3 {[%emt 0:00:10]} Ra8 {[%emt 0:00:17]} 29. Rb7+ {[%emt 0:00:11]} Ke8 {[%emt 0:00:19]} 30. Nf3 {[%emt 0:00:12]} Rxa4 {[%emt 0:00:19]} 31. Ng5 {[%emt 0:00:09]} Ra2 {[%emt 0:00:33]} 32. Rxf7 {[%emt 0:00:15]} Bd4 {[%emt 0:00:15]} 33. Kd2 {[%emt 0:00:18]} Ra3 {[%emt 0:00:10]} 34. Rh7 {[%emt 0:00:15]} Rxg3 1-0